[Event "*** Titled Tuesday Blitz"]
[Site "Chess.com"]
[Date "2021.02.09"]
[Round "5"]
[White "MerryPoppies"]
[Black "Joseacorrea"]
[Result "0-1"]
[WhiteElo "2166"]
[BlackElo "2006"]
[TimeControl "180+1"]
[EndTime "10:58:06 PST"]
[Termination "Joseacorrea won by resignation"]

1. d4 {[%clk 0:03:00.9]} 1... e6 {[%clk 0:02:59.7]} 2. c4 {[%clk 0:02:55.9]}
2... f5 {[%clk 0:02:59.8]} 3. Nc3 {[%clk 0:02:55.8]} 3... Nf6 {[%clk 0:03:00.3]}
4. Nf3 {[%clk 0:02:54.5]} 4... Be7 {[%clk 0:03:00.7]} 5. Bg5 {[%clk 0:02:54]}
5... b6 {[%clk 0:03:01.2]} 6. e3 {[%clk 0:02:53.4]} 6... Bb7 {[%clk 0:03:01.4]}
7. Bd3 {[%clk 0:02:53.5]} 7... O-O {[%clk 0:03:01.8]} 8. O-O {[%clk 0:02:53.2]}
8... Ne4 {[%clk 0:02:58.3]} 9. Bxe7 {[%clk 0:02:51.9]} 9... Qxe7 {[%clk
0:02:59.2]} 10. Nd2 {[%clk 0:02:52]} 10... Nxc3 {[%clk 0:02:26.5]} 11. bxc3
{[%clk 0:02:51.5]} 11... Qg5 {[%clk 0:02:19.8]} 12. f3 {[%clk 0:02:48.6]} 12...
Qxe3+ {[%clk 0:02:18.6]} 13. Kh1 {[%clk 0:02:47.4]} 13... Qxd3 {[%clk
0:02:18.5]} 14. Rc1 {[%clk 0:02:44.7]} 14... f4 {[%clk 0:02:05.2]} 15. Re1
{[%clk 0:02:43.6]} 15... Qg6 {[%clk 0:02:00.3]} 16. Ne4 {[%clk 0:02:42.4]} 16...
Bxe4 {[%clk 0:01:54.2]} 17. Rxe4 {[%clk 0:02:42.1]} 17... d5 {[%clk 0:01:38]}
18. cxd5 {[%clk 0:02:37.2]} 18... exd5 {[%clk 0:01:38.9]} 19. Re7 {[%clk
0:02:37.1]} 19... Qd6 {[%clk 0:01:31.9]} 20. Qe2 {[%clk 0:02:32.4]} 20... Nc6
{[%clk 0:01:30.8]} 21. Re6 {[%clk 0:02:32.1]} 21... Qd7 {[%clk 0:01:27.9]} 22.
Re1 {[%clk 0:02:27.3]} 22... Rac8 {[%clk 0:01:06.5]} 23. Qb5 {[%clk 0:02:24.7]}
23... Rfe8 {[%clk 0:00:52.7]} 24. Rxe8+ {[%clk 0:01:46.8]} 24... Rxe8 {[%clk
0:00:53.6]} 25. Rxe8+ {[%clk 0:01:46.9]} 25... Qxe8 {[%clk 0:00:54.2]} 26. h3
{[%clk 0:01:47.1]} 26... Qe6 {[%clk 0:00:47.9]} 27. Kh2 {[%clk 0:01:39]} 27...
Kf7 {[%clk 0:00:47.8]} 28. Qd3 {[%clk 0:01:18.2]} 28... g6 {[%clk 0:00:45.9]}
29. Qd2 {[%clk 0:01:16.7]} 29... Qe3 {[%clk 0:00:44.9]} 30. Qb2 {[%clk
0:01:15.4]} 30... Ne7 {[%clk 0:00:28.1]} 31. Qb3 {[%clk 0:01:00.8]} 31... c6
{[%clk 0:00:26.5]} 32. Qa3 {[%clk 0:00:57.3]} 32... a5 {[%clk 0:00:23.5]} 33.
Qd6 {[%clk 0:00:54.8]} 33... g5 {[%clk 0:00:17.6]} 34. Qh6 {[%clk 0:00:52.9]}
34... Qxc3 {[%clk 0:00:04.8]} 35. Qxh7+ {[%clk 0:00:51.1]} 35... Ke6 {[%clk
0:00:05]} 36. Qh6+ {[%clk 0:00:50.3]} 36... Kd7 {[%clk 0:00:05.2]} 37. Qf6
{[%clk 0:00:45.5]} 37... Qe1 {[%clk 0:00:02.2]} 38. Qxg5 {[%clk 0:00:31.7]}
38... Qg3+ {[%clk 0:00:01.9]} 39. Qxg3 {[%clk 0:00:31.9]} 39... fxg3+ {[%clk
0:00:02.8]} 40. Kxg3 {[%clk 0:00:32.8]} 40... Ke6 {[%clk 0:00:03.4]} 41. Kf4
{[%clk 0:00:32.2]} 41... Kf6 {[%clk 0:00:03.4]} 42. g4 {[%clk 0:00:32.3]} 42...
c5 {[%clk 0:00:03.9]} 43. dxc5 {[%clk 0:00:30.3]} 43... bxc5 {[%clk 0:00:04.8]}
44. h4 {[%clk 0:00:30.7]} 44... c4 {[%clk 0:00:05.1]} 45. g5+ {[%clk 0:00:29.8]}
45... Kg6 {[%clk 0:00:04.7]} 46. Ke3 {[%clk 0:00:28.4]} 46... Kh5 {[%clk
0:00:03.8]} 47. f4 {[%clk 0:00:22.2]} 47... Nf5+ {[%clk 0:00:03.9]} 48. Kd2
{[%clk 0:00:20.4]} 48... Kxh4 {[%clk 0:00:04.2]} 49. Kc3 {[%clk 0:00:20.4]}
49... Kh5 {[%clk 0:00:04.1]} 50. a4 {[%clk 0:00:19.7]} 50... Kg6 {[%clk
0:00:04.6]} 51. Kd2 {[%clk 0:00:19.4]} 51... d4 {[%clk 0:00:04.9]} 52. Kc2
{[%clk 0:00:19.3]} 52... c3 {[%clk 0:00:04.9]} 53. Kd3 {[%clk 0:00:19.6]} 53...
Ne3 {[%clk 0:00:04.1]} 54. Ke4 {[%clk 0:00:18.1]} 54... c2 {[%clk 0:00:04.3]}
55. f5+ {[%clk 0:00:19]} 55... Kxg5 {[%clk 0:00:03.4]} 56. f6 {[%clk 0:00:18.9]}
56... c1=Q {[%clk 0:00:04.2]} 0-1

[Event "*** Titled Tuesday Blitz"]
[Site "Chess.com"]
[Date "2021.02.09"]
[Round "5"]
[White "eCztery"]
[Black "jorquerino"]
[Result "0-1"]
[WhiteElo "2465"]
[BlackElo "2297"]
[TimeControl "180+1"]
[EndTime "10:58:08 PST"]
[Termination "jorquerino won by checkmate"]

1. e4 {[%clk 0:02:15.7]} 1... d5 {[%clk 0:02:57.7]} 2. exd5 {[%clk 0:02:08.7]}
2... Nf6 {[%clk 0:02:57.4]} 3. Bb5+ {[%clk 0:02:07.9]} 3... Bd7 {[%clk
0:02:56.3]} 4. Be2 {[%clk 0:02:02.8]} 4... Nxd5 {[%clk 0:02:55.2]} 5. d4 {[%clk
0:02:01.9]} 5... Bf5 {[%clk 0:02:55.8]} 6. Nf3 {[%clk 0:02:01]} 6... e6 {[%clk
0:02:55.4]} 7. O-O {[%clk 0:02:00.7]} 7... Be7 {[%clk 0:02:55.5]} 8. c4 {[%clk
0:01:55.7]} 8... Nb4 {[%clk 0:02:54.7]} 9. Na3 {[%clk 0:01:50.6]} 9... O-O
{[%clk 0:02:53.6]} 10. Bf4 {[%clk 0:01:45.8]} 10... Nd7 {[%clk 0:02:49.8]} 11.
Rc1 {[%clk 0:01:41.9]} 11... Nxa2 {[%clk 0:02:47.8]} 12. Ra1 {[%clk 0:01:41.8]}
12... Nb4 {[%clk 0:02:47.6]} 13. Nb5 {[%clk 0:01:40.2]} 13... Na6 {[%clk
0:01:17.1]} 14. Bd3 {[%clk 0:01:24.5]} 14... Bxd3 {[%clk 0:01:15]} 15. Qxd3
{[%clk 0:01:23.1]} 15... h6 {[%clk 0:01:12.4]} 16. b3 {[%clk 0:01:04.3]} 16...
Nb4 {[%clk 0:00:56.6]} 17. Qd2 {[%clk 0:01:03.1]} 17... c6 {[%clk 0:00:50.5]}
18. Nd6 {[%clk 0:00:59.8]} 18... c5 {[%clk 0:00:32.8]} 19. Nxb7 {[%clk
0:00:58.2]} 19... Qb6 {[%clk 0:00:33.3]} 20. Nxc5 {[%clk 0:00:52.6]} 20... Nxc5
{[%clk 0:00:33.3]} 21. dxc5 {[%clk 0:00:53.3]} 21... Bxc5 {[%clk 0:00:34.2]} 22.
Ne5 {[%clk 0:00:51.3]} 22... Rfd8 {[%clk 0:00:32.6]} 23. Qe2 {[%clk 0:00:45.6]}
23... a5 {[%clk 0:00:28.5]} 24. Qh5 {[%clk 0:00:34.4]} 24... Qb7 {[%clk
0:00:25.8]} 25. Ng4 {[%clk 0:00:31.2]} 25... Bd4 {[%clk 0:00:16.8]} 26. Rad1
{[%clk 0:00:27.3]} 26... Qe4 {[%clk 0:00:15.6]} 27. Rxd4 {[%clk 0:00:21.8]}
27... Rxd4 {[%clk 0:00:13.4]} 28. g3 {[%clk 0:00:20.3]} 28... a4 {[%clk
0:00:11]} 29. bxa4 {[%clk 0:00:17.3]} 29... Rxa4 {[%clk 0:00:11]} 30. Be5 {[%clk
0:00:17.7]} 30... Rxc4 {[%clk 0:00:10.2]} 31. Rd1 {[%clk 0:00:14.6]} 31... Rc8
{[%clk 0:00:08.5]} 32. h4 {[%clk 0:00:10.9]} 32... Rf8 {[%clk 0:00:07.9]} 33.
Bf6 {[%clk 0:00:10.1]} 33... Nd5 {[%clk 0:00:07.2]} 34. Ba1 {[%clk 0:00:08]}
34... Qxg4 {[%clk 0:00:07.2]} 35. Qe5 {[%clk 0:00:07.4]} 35... Qxd1+ {[%clk
0:00:05.3]} 36. Kh2 {[%clk 0:00:06.9]} 36... Qxa1 {[%clk 0:00:06.2]} 37. Qe2
{[%clk 0:00:06.3]} 37... Ra2 {[%clk 0:00:06.1]} 38. Qf3 {[%clk 0:00:06.9]} 38...
Qe1 {[%clk 0:00:06]} 39. Kg2 {[%clk 0:00:06.9]} 39... Rxf2+ {[%clk 0:00:06.6]}
40. Qxf2 {[%clk 0:00:07.8]} 40... Qxf2+ {[%clk 0:00:07.3]} 41. Kxf2 {[%clk
0:00:08.7]} 41... Rc8 {[%clk 0:00:07.3]} 42. Kf3 {[%clk 0:00:09.6]} 42... Rc4
{[%clk 0:00:07.7]} 43. g4 {[%clk 0:00:09.9]} 43... h5 {[%clk 0:00:08.6]} 44. g5
{[%clk 0:00:10.8]} 44... f5 {[%clk 0:00:08.4]} 45. gxf6 {[%clk 0:00:10.9]} 45...
gxf6 {[%clk 0:00:09.3]} 46. Kg3 {[%clk 0:00:11.6]} 46... f5 {[%clk 0:00:10.1]}
47. Kh3 {[%clk 0:00:12.5]} 47... Rc3+ {[%clk 0:00:10.3]} 48. Kg2 {[%clk
0:00:13.4]} 48... e5 {[%clk 0:00:10.4]} 49. Kf2 {[%clk 0:00:13.7]} 49... Kf7
{[%clk 0:00:10.8]} 50. Kg2 {[%clk 0:00:14.6]} 50... Kf6 {[%clk 0:00:11.4]} 51.
Kf2 {[%clk 0:00:15.5]} 51... f4 {[%clk 0:00:12]} 52. Kg2 {[%clk 0:00:16.4]}
52... Kf5 {[%clk 0:00:12.6]} 53. Kf2 {[%clk 0:00:17.3]} 53... Kg4 {[%clk
0:00:13.1]} 54. Kg2 {[%clk 0:00:18.2]} 54... e4 {[%clk 0:00:13.6]} 55. Kf2
{[%clk 0:00:19.1]} 55... Rc2+ {[%clk 0:00:14.1]} 56. Ke1 {[%clk 0:00:19.1]}
56... e3 {[%clk 0:00:14.5]} 57. Kd1 {[%clk 0:00:19.1]} 57... Nb4 {[%clk
0:00:15]} 58. Ke1 {[%clk 0:00:20]} 58... f3 {[%clk 0:00:15.4]} 59. Kd1 {[%clk
0:00:20.9]} 59... Rd2+ {[%clk 0:00:13.5]} 60. Ke1 {[%clk 0:00:21.8]} 60... Nd3+
{[%clk 0:00:13]} 61. Kf1 {[%clk 0:00:22.7]} 61... Rd1# {[%clk 0:00:12.4]} 0-1

[Event "*** Titled Tuesday Blitz"]
[Site "Chess.com"]
[Date "2021.02.09"]
[Round "5"]
[White "Murad_Ibrahimli"]
[Black "ehrenfeld"]
[Result "1-0"]
[WhiteElo "2720"]
[BlackElo "2517"]
[TimeControl "180+1"]
[EndTime "10:58:09 PST"]
[Termination "Murad_Ibrahimli won by resignation"]

1. d4 {[%clk 0:03:00.9]} 1... Nf6 {[%clk 0:02:58.8]} 2. c4 {[%clk 0:03:01.2]}
2... e6 {[%clk 0:02:56.9]} 3. Nf3 {[%clk 0:03:01.1]} 3... Bb4+ {[%clk
0:02:57.1]} 4. Nbd2 {[%clk 0:03:00.1]} 4... O-O {[%clk 0:02:55.9]} 5. a3 {[%clk
0:02:58]} 5... Be7 {[%clk 0:02:55.8]} 6. e3 {[%clk 0:02:55.3]} 6... b6 {[%clk
0:02:51]} 7. Bd3 {[%clk 0:02:55.1]} 7... Bb7 {[%clk 0:02:51.2]} 8. b4 {[%clk
0:02:53.2]} 8... a5 {[%clk 0:02:50.2]} 9. b5 {[%clk 0:02:51.3]} 9... d6 {[%clk
0:02:49.9]} 10. O-O {[%clk 0:02:50.3]} 10... Nbd7 {[%clk 0:02:49.8]} 11. Qc2
{[%clk 0:02:50]} 11... e5 {[%clk 0:02:48.6]} 12. Bb2 {[%clk 0:02:44.9]} 12...
exd4 {[%clk 0:02:37.8]} 13. exd4 {[%clk 0:02:41.8]} 13... Re8 {[%clk 0:02:32.4]}
14. Rfe1 {[%clk 0:02:18.6]} 14... Bf8 {[%clk 0:02:32.2]} 15. Rxe8 {[%clk
0:02:15.9]} 15... Qxe8 {[%clk 0:02:32.2]} 16. Re1 {[%clk 0:02:16.3]} 16... Qd8
{[%clk 0:02:32.2]} 17. d5 {[%clk 0:02:10.5]} 17... g6 {[%clk 0:02:23.5]} 18. Bd4
{[%clk 0:01:58.2]} 18... Bg7 {[%clk 0:02:22.5]} 19. h3 {[%clk 0:01:56.2]} 19...
Qf8 {[%clk 0:02:19.8]} 20. a4 {[%clk 0:01:48.1]} 20... Re8 {[%clk 0:02:19.2]}
21. Rxe8 {[%clk 0:01:48.6]} 21... Nxe8 {[%clk 0:02:16.9]} 22. Be3 {[%clk
0:01:45.6]} 22... Nc5 {[%clk 0:02:12.5]} 23. Bxc5 {[%clk 0:01:27.7]} 23... dxc5
{[%clk 0:02:12.1]} 24. Qd1 {[%clk 0:01:26.4]} 24... Qe7 {[%clk 0:02:09.1]} 25.
Qe2 {[%clk 0:01:23.2]} 25... Qxe2 {[%clk 0:02:08.3]} 26. Bxe2 {[%clk 0:01:23.9]}
26... Nd6 {[%clk 0:02:07.7]} 27. Bd3 {[%clk 0:01:24.1]} 27... Bc8 {[%clk
0:02:07.3]} 28. Kf1 {[%clk 0:01:19.2]} 28... Kf8 {[%clk 0:02:06.7]} 29. Ke2
{[%clk 0:01:19]} 29... Ke7 {[%clk 0:02:06.6]} 30. Nf1 {[%clk 0:01:03.3]} 30...
f5 {[%clk 0:02:04.6]} 31. N3d2 {[%clk 0:00:53.9]} 31... Bc3 {[%clk 0:02:02.8]}
32. f4 {[%clk 0:00:50.4]} 32... Bd7 {[%clk 0:02:02.3]} 33. Nf3 {[%clk
0:00:50.5]} 33... h6 {[%clk 0:01:59.3]} 34. Ne5 {[%clk 0:00:44.5]} 34... Be8
{[%clk 0:01:56.2]} 35. Ne3 {[%clk 0:00:44.8]} 35... Kf6 {[%clk 0:01:54.3]} 36.
Nf3 {[%clk 0:00:43.2]} 36... Bd7 {[%clk 0:01:47.2]} 37. g4 {[%clk 0:00:40]}
37... fxg4 {[%clk 0:01:40.4]} 38. hxg4 {[%clk 0:00:39.7]} 38... g5 {[%clk
0:01:36.7]} 39. f5 {[%clk 0:00:26.6]} 39... Nf7 {[%clk 0:01:36]} 40. Nd2 {[%clk
0:00:23.2]} 40... Bxd2 {[%clk 0:01:34.6]} 41. Kxd2 {[%clk 0:00:24.1]} 41... Ke5
{[%clk 0:01:34.3]} 42. Be2 {[%clk 0:00:20.4]} 42... Nd6 {[%clk 0:01:23.9]} 43.
Kd3 {[%clk 0:00:18.9]} 43... Kf4 {[%clk 0:01:22.1]} 44. Ng2+ {[%clk 0:00:18.7]}
44... Ke5 {[%clk 0:01:20.8]} 45. Ne3 {[%clk 0:00:19]} 45... Be8 {[%clk
0:01:19.8]} 46. Nd1 {[%clk 0:00:18.2]} 46... Bd7 {[%clk 0:01:12.6]} 47. Nb2
{[%clk 0:00:17.5]} 47... h5 {[%clk 0:01:10.7]} 48. gxh5 {[%clk 0:00:17.5]} 48...
Bxf5+ {[%clk 0:01:10.5]} 49. Ke3 {[%clk 0:00:18]} 49... Bc2 {[%clk 0:01:07.4]}
50. Bd3 {[%clk 0:00:16.3]} 50... Nf5+ {[%clk 0:01:04.8]} 51. Kf3 {[%clk
0:00:13.7]} 51... Bb3 {[%clk 0:00:55.8]} 52. Kg4 {[%clk 0:00:12.2]} 52... Ne3+
{[%clk 0:00:49.6]} 53. Kxg5 {[%clk 0:00:12.6]} 53... Kd4 {[%clk 0:00:38.8]} 54.
h6 {[%clk 0:00:12.6]} 54... Kc3 {[%clk 0:00:38.9]} 55. h7 {[%clk 0:00:12.9]}
55... Kxb2 {[%clk 0:00:39]} 56. h8=Q+ {[%clk 0:00:13.4]} 56... Ka2 {[%clk
0:00:35.7]} 57. Qh2+ {[%clk 0:00:13.6]} 57... Ka3 {[%clk 0:00:34.7]} 58. Qxc7
{[%clk 0:00:13.8]} 58... Bxc4 {[%clk 0:00:32]} 59. Bxc4 {[%clk 0:00:14]} 59...
Nxc4 {[%clk 0:00:31.7]} 60. d6 {[%clk 0:00:14.9]} 60... Kxa4 {[%clk 0:00:29.5]}
61. d7 {[%clk 0:00:14.7]} 61... Kb4 {[%clk 0:00:29.6]} 62. d8=Q {[%clk 0:00:15]}
62... a4 {[%clk 0:00:29.9]} 63. Qd3 {[%clk 0:00:15.4]} 63... a3 {[%clk 0:00:30]}
64. Qf4 {[%clk 0:00:15.9]} 64... Ka5 {[%clk 0:00:27.1]} 65. Qfxc4 {[%clk
0:00:14.8]} 1-0

[Event "*** Titled Tuesday Blitz"]
[Site "Chess.com"]
[Date "2021.02.09"]
[Round "5"]
[White "zeitnot2006"]
[Black "SHIVACalypso"]
[Result "1-0"]
[WhiteElo "2527"]
[BlackElo "2363"]
[TimeControl "180+1"]
[EndTime "10:58:13 PST"]
[Termination "zeitnot2006 won on time"]

1. e4 {[%clk 0:03:00.9]} 1... e6 {[%clk 0:02:57.8]} 2. b3 {[%clk 0:02:56]} 2...
d5 {[%clk 0:02:57.2]} 3. Bb2 {[%clk 0:02:53]} 3... Nc6 {[%clk 0:02:54.8]} 4. Bb5
{[%clk 0:02:48.5]} 4... a6 {[%clk 0:02:52.8]} 5. Bxc6+ {[%clk 0:02:47.5]} 5...
bxc6 {[%clk 0:02:53.7]} 6. Nc3 {[%clk 0:02:46.5]} 6... Nf6 {[%clk 0:02:52.7]} 7.
d3 {[%clk 0:02:42.5]} 7... Be7 {[%clk 0:02:52.4]} 8. Nf3 {[%clk 0:02:40.5]} 8...
O-O {[%clk 0:02:51.9]} 9. O-O {[%clk 0:02:40.2]} 9... Bb7 {[%clk 0:02:48.1]} 10.
Qe2 {[%clk 0:02:36]} 10... Re8 {[%clk 0:02:46.4]} 11. Na4 {[%clk 0:02:29.8]}
11... c5 {[%clk 0:02:45.3]} 12. Rad1 {[%clk 0:02:26.6]} 12... Bc6 {[%clk
0:02:43.7]} 13. Bxf6 {[%clk 0:02:11.4]} 13... gxf6 {[%clk 0:02:31.5]} 14. Nc3
{[%clk 0:02:07.3]} 14... Bf8 {[%clk 0:02:27.2]} 15. Qd2 {[%clk 0:01:54]} 15...
Bg7 {[%clk 0:02:26.6]} 16. exd5 {[%clk 0:01:52.4]} 16... exd5 {[%clk 0:02:25.4]}
17. Qf4 {[%clk 0:01:49.8]} 17... Qd6 {[%clk 0:02:23.1]} 18. Qg4 {[%clk
0:01:45.1]} 18... Kh8 {[%clk 0:02:11.9]} 19. Rfe1 {[%clk 0:01:38.7]} 19... Rg8
{[%clk 0:02:10.7]} 20. Qh5 {[%clk 0:01:35.2]} 20... Raf8 {[%clk 0:01:38.9]} 21.
Ne2 {[%clk 0:01:30.4]} 21... d4 {[%clk 0:01:35.5]} 22. Ng3 {[%clk 0:01:23.6]}
22... Qd5 {[%clk 0:01:06.6]} 23. Qxd5 {[%clk 0:01:19.3]} 23... Bxd5 {[%clk
0:01:07.5]} 24. Re7 {[%clk 0:01:17.2]} 24... Bh6 {[%clk 0:01:01]} 25. Kf1 {[%clk
0:01:08]} 25... Bf4 {[%clk 0:00:53.6]} 26. Rde1 {[%clk 0:01:04.3]} 26... Bd6
{[%clk 0:00:52.9]} 27. R7e2 {[%clk 0:01:01.1]} 27... Rg6 {[%clk 0:00:25.8]} 28.
Re8 {[%clk 0:00:56.5]} 28... Kg8 {[%clk 0:00:24.5]} 29. Nf5 {[%clk 0:00:48.4]}
29... Bxf3 {[%clk 0:00:19.7]} 30. gxf3 {[%clk 0:00:45.4]} 30... Rg5 {[%clk
0:00:17.5]} 31. Nxd6 {[%clk 0:00:14.5]} 31... cxd6 {[%clk 0:00:16.6]} 32. R1e7
{[%clk 0:00:14.5]} 32... Re5 {[%clk 0:00:14.3]} 33. Rxf8+ {[%clk 0:00:12.8]}
33... Kxf8 {[%clk 0:00:13.5]} 34. Ra7 {[%clk 0:00:10.7]} 34... Rh5 {[%clk
0:00:11.9]} 35. Rxa6 {[%clk 0:00:08.8]} 35... Ke7 {[%clk 0:00:12.1]} 36. Ra7+
{[%clk 0:00:07]} 36... Ke6 {[%clk 0:00:11.9]} 37. Kg2 {[%clk 0:00:06.3]} 37...
Re5 {[%clk 0:00:12.1]} 38. Ra8 {[%clk 0:00:03.2]} 38... Ke7 {[%clk 0:00:10.8]}
39. Kf1 {[%clk 0:00:03.6]} 39... Rh5 {[%clk 0:00:10.5]} 40. a4 {[%clk
0:00:04.3]} 40... Rxh2 {[%clk 0:00:10.1]} 41. a5 {[%clk 0:00:04.9]} 41... Rh1+
{[%clk 0:00:08.7]} 42. Kg2 {[%clk 0:00:05.3]} 42... Ra1 {[%clk 0:00:09.3]} 43.
a6 {[%clk 0:00:05.3]} 43... Ra2 {[%clk 0:00:07.4]} 44. a7 {[%clk 0:00:03.7]}
44... f5 {[%clk 0:00:07.2]} 45. Kg3 {[%clk 0:00:03.3]} 45... Kf6 {[%clk
0:00:07.2]} 46. Kf4 {[%clk 0:00:02.7]} 46... Ra6 {[%clk 0:00:03.7]} 47. Kg3
{[%clk 0:00:02.5]} 47... Ra2 {[%clk 0:00:03]} 48. Kh4 {[%clk 0:00:02.6]} 48...
Kg7 {[%clk 0:00:02.3]} 49. Kg5 {[%clk 0:00:02.5]} 49... Ra6 {[%clk 0:00:02.1]}
50. Kxf5 {[%clk 0:00:02.8]} 50... h6 {[%clk 0:00:02.5]} 51. Ke4 {[%clk
0:00:02.7]} 51... Ra5 {[%clk 0:00:01.4]} 52. Kd5 {[%clk 0:00:02.6]} 52... Ra6
{[%clk 0:00:02]} 53. Kc4 {[%clk 0:00:02.7]} 53... h5 {[%clk 0:00:02.3]} 54. Kb5
{[%clk 0:00:03.2]} 54... Ra1 {[%clk 0:00:01.5]} 55. Kb6 {[%clk 0:00:03.7]} 55...
h4 {[%clk 0:00:01.9]} 56. Rb8 {[%clk 0:00:04]} 56... h3 {[%clk 0:00:02.1]} 57.
a8=Q {[%clk 0:00:04.2]} 1-0

[Event "*** Titled Tuesday Blitz"]
[Site "Chess.com"]
[Date "2021.02.09"]
[Round "5"]
[White "Stormeman100100"]
[Black "ljuks68"]
[Result "0-1"]
[WhiteElo "2526"]
[BlackElo "2386"]
[TimeControl "180+1"]
[EndTime "10:58:13 PST"]
[Termination "ljuks68 won by checkmate"]

1. d4 {[%clk 0:03:00]} 1... d5 {[%clk 0:02:03.2]} 2. c4 {[%clk 0:02:55.5]} 2...
c6 {[%clk 0:02:03.2]} 3. Nc3 {[%clk 0:02:54.5]} 3... Nf6 {[%clk 0:02:03.3]} 4.
Nf3 {[%clk 0:02:54.4]} 4... dxc4 {[%clk 0:02:03.1]} 5. a4 {[%clk 0:02:52.7]}
5... Bf5 {[%clk 0:02:03]} 6. Ne5 {[%clk 0:02:52.7]} 6... Na6 {[%clk 0:02:02.1]}
7. f3 {[%clk 0:02:48.9]} 7... Nd7 {[%clk 0:02:01.4]} 8. Nxc4 {[%clk 0:02:46.6]}
8... e5 {[%clk 0:02:00.8]} 9. dxe5 {[%clk 0:02:41.4]} 9... Qh4+ {[%clk 0:02:00]}
10. g3 {[%clk 0:02:37.5]} 10... Qxc4 {[%clk 0:01:59.8]} 11. e4 {[%clk
0:02:37.8]} 11... Qe6 {[%clk 0:01:58.4]} 12. exf5 {[%clk 0:02:35.5]} 12... Qxe5+
{[%clk 0:01:58.4]} 13. Qe2 {[%clk 0:02:35.1]} 13... Nb4 {[%clk 0:01:52.8]} 14.
Kf2 {[%clk 0:02:20.7]} 14... Bc5+ {[%clk 0:01:46.5]} 15. Kg2 {[%clk 0:02:20.8]}
15... O-O {[%clk 0:01:46.3]} 16. Qxe5 {[%clk 0:02:18.5]} 16... Nxe5 {[%clk
0:01:46.3]} 17. Ne4 {[%clk 0:02:15.6]} 17... Bd4 {[%clk 0:01:41.3]} 18. Ra3
{[%clk 0:01:53.5]} 18... Rad8 {[%clk 0:01:28.6]} 19. Be2 {[%clk 0:01:46.1]}
19... a5 {[%clk 0:01:24.4]} 20. Rd1 {[%clk 0:01:33.5]} 20... Rfe8 {[%clk
0:01:14.5]} 21. f4 {[%clk 0:01:08.6]} 21... Nc4 {[%clk 0:00:39.3]} 22. Bxc4
{[%clk 0:01:06.3]} 22... Rxe4 {[%clk 0:00:38.8]} 23. Kf3 {[%clk 0:00:58.4]}
23... Rde8 {[%clk 0:00:34.9]} 24. Bd2 {[%clk 0:00:48.8]} 24... Bxb2 {[%clk
0:00:29.7]} 25. Bd3 {[%clk 0:00:43.7]} 25... Rd4 {[%clk 0:00:21.3]} 26. Bxb4
{[%clk 0:00:42.8]} 26... axb4 {[%clk 0:00:19.1]} 27. Rb3 {[%clk 0:00:43.2]}
27... Bc3 {[%clk 0:00:19.1]} 28. Be2 {[%clk 0:00:43.6]} 28... Rxd1 {[%clk
0:00:18.5]} 29. Bxd1 {[%clk 0:00:44.5]} 29... Rd8 {[%clk 0:00:18.4]} 30. Be2
{[%clk 0:00:44.2]} 30... Rd4 {[%clk 0:00:17.4]} 31. Rb1 {[%clk 0:00:42.8]} 31...
c5 {[%clk 0:00:16.5]} 32. g4 {[%clk 0:00:39.9]} 32... Kf8 {[%clk 0:00:16.3]} 33.
h4 {[%clk 0:00:40.1]} 33... Ke7 {[%clk 0:00:16.5]} 34. h5 {[%clk 0:00:40.1]}
34... f6 {[%clk 0:00:15.6]} 35. g5 {[%clk 0:00:39.6]} 35... h6 {[%clk
0:00:15.8]} 36. gxh6 {[%clk 0:00:37.9]} 36... gxh6 {[%clk 0:00:15.7]} 37. Rg1
{[%clk 0:00:37.3]} 37... b3 {[%clk 0:00:15.5]} 38. Rg7+ {[%clk 0:00:37.2]} 38...
Kd6 {[%clk 0:00:15.3]} 39. Rxb7 {[%clk 0:00:38.1]} 39... b2 {[%clk 0:00:15.6]}
40. a5 {[%clk 0:00:21.7]} 40... Bb4 {[%clk 0:00:15.2]} 41. Rb6+ {[%clk
0:00:21.2]} 41... Kc7 {[%clk 0:00:14.5]} 42. Ba6 {[%clk 0:00:13.5]} 42... b1=Q
{[%clk 0:00:14.1]} 43. Rb7+ {[%clk 0:00:13.9]} 43... Kc6 {[%clk 0:00:14.3]} 44.
Rb6+ {[%clk 0:00:13.9]} 44... Kd7 {[%clk 0:00:13.6]} 45. Rb7+ {[%clk 0:00:13.2]}
45... Kd8 {[%clk 0:00:13.6]} 46. Rb8+ {[%clk 0:00:13]} 46... Ke7 {[%clk
0:00:14]} 47. Rb7+ {[%clk 0:00:11]} 47... Rd7 {[%clk 0:00:14.3]} 48. Rxd7+
{[%clk 0:00:10.1]} 48... Kxd7 {[%clk 0:00:14.3]} 49. Bb5+ {[%clk 0:00:09.9]}
49... Kd6 {[%clk 0:00:14.1]} 50. a6 {[%clk 0:00:10.1]} 50... Qd1+ {[%clk
0:00:14.2]} 51. Be2 {[%clk 0:00:09.7]} 51... Qa1 {[%clk 0:00:14]} 52. Ke3 {[%clk
0:00:10.6]} 52... Kd5 {[%clk 0:00:13.9]} 53. Kd3 {[%clk 0:00:11]} 53... Qxa6+
{[%clk 0:00:12.1]} 54. Ke3 {[%clk 0:00:11]} 54... Qa3+ {[%clk 0:00:12.2]} 55.
Kf2 {[%clk 0:00:11.4]} 55... c4 {[%clk 0:00:12.5]} 56. Bf3+ {[%clk 0:00:12.3]}
56... Kd4 {[%clk 0:00:11.7]} 57. Kg3 {[%clk 0:00:13.2]} 57... Qb2 {[%clk
0:00:11.9]} 58. Kh4 {[%clk 0:00:14.1]} 58... Bc3 {[%clk 0:00:12.5]} 59. Kg4
{[%clk 0:00:14.3]} 59... Be1 {[%clk 0:00:12.4]} 60. Kh3 {[%clk 0:00:13]} 60...
Qf2 {[%clk 0:00:12.8]} 61. Kg4 {[%clk 0:00:13.9]} 61... Qg3# {[%clk 0:00:13]}
0-1